bitfinex/quotes_ETHUSD_20250406
["timestamp","ask_amount","ask_price","bid_price","bid_amount"]
[1743982443398,6.42265,1561.9,1561.5,14.088745]
[1743982443603,0.02,1561.9,1561.5,2.811395]
[1743982443931,0.02,1561.9,1561.8,6.40286]
[1743982444101,0.02,1561.9,1561.7,6.40309]
[1743982444298,0.02,1561.9,1561.7,12.80615]
[1743982444835,6.42253,1561.9,1561.5,7.93453]
[1743982445135,0.02,1561.9,1561.7,6.40306]
[1743982445434,0.02,1561.9,1561.8,6.40286]
[1743982445641,0.02,1561.9,1561.8,6.46688576]
[1743982445940,7.93567,1562.4,1562.1,6.40147]
[1743982446235,2.56792559,1562.8,1562.7,6.39918]
[1743982446437,19.83631067,1563.6,1562.8,11.00187]
[1743982446810,19.83631067,1563.6,1563.4,7.98366]
[1743982447011,0.55,1563.6,1563.5,6.3959]
[1743982447225,0.55,1563.6,1563.5,0.59401876]
[1743982447733,0.55,1563.6,1563.5,6.98991876]
[1743982447944,0.55,1563.6,1563.5,8.32851664]
[1743982448108,0.55,1563.6,1563.1,1.5875]
[1743982448109,6.3959,1563.5,1563.1,1.5875]
[1743982448301,8.5553,1563.6,1563.1,6.3975]
[1743982448508,2.1597,1563.6,1562.9,6.39836]
[1743982448836,6.9455,1563.6,1563.3,6.39672]
[1743982449016,6.9455,1563.6,1563.2,6.39707]
[1743982449431,6.39713,1563.2,1562.8,1.5875]
[1743982449640,6.39713,1563.2,1562.7,6.39914]
[1743982449835,6.39666,1563.4,1562.9,6.39817]
[1743982450040,1.6259,1563.5,1563.2,6.39694]
[1743982450260,6.39652,1563.4,1563.0,6.39794]
[1743982450565,3.802242,1563.4,1562.8,6.39861]
[1743982450721,10.198592,1563.4,1562.9,6.39821]
[1743982450923,6.39735,1563.2,1562.7,12.79777]
[1743982451318,6.3976,1563.1,1562.7,6.39877]
[1743982451521,6.39797,1563.0,1562.6,6.39934]
[1743982451748,7.93027,1563.0,1562.6,6.39934]
[1743982451917,6.39837,1562.9,1562.5,8.41623713]
[1743982452124,1.5323,1563.0,1562.6,6.39923]
[1743982452350,1.5323,1563.0,1562.7,6.39884]
[1743982452721,1.5323,1563.0,1562.6,6.39934]
[1743982452722,7.93028,1563.0,1562.6,6.39934]
[1743982452923,7.93028,1563.0,1562.6,12.79867]
[1743982453121,7.93028,1563.0,1562.6,6.39957]
[1743982453322,7.93028,1563.0,1562.5,6.39998]
[1743982453323,6.39837,1562.9,1562.5,6.39995]
[1743982453753,12.79699,1562.9,1562.5,6.39995]
[1743982454050,8.51655,1563.6,1563.2,6.39689]
[1743982454220,2.1209,1563.6,1563.0,6.3979]
[1743982454420,0.55,1563.6,1563.0,3.0]
[1743982454653,0.55,1563.6,1563.5,6.3959]
[1743982454853,0.55,1563.6,1563.4,6.39611]
[1743982455154,0.55,1563.6,1563.5,6.3959]
[1743982455463,0.55,1563.6,1563.4,12.55611]
[1743982455642,0.55,1563.6,1563.2,6.87245047]
[1743982455838,0.55,1563.6,1563.2,0.47549047]
[1743982456063,0.55,1563.6,1563.5,6.3959]
[1743982456357,0.02,1563.9,1563.8,6.39467]
[1743982456658,0.02,1563.9,1563.8,15.61860032]
[1743982456859,1e-05,1563.9,1563.8,17.62837]
[1743982457063,0.02,1564.9,1564.6,6.39103]
[1743982457263,0.02,1564.9,1564.7,6.39079]
[1743982457557,0.13043753,1564.8,1564.6,6.39112]
[1743982457762,0.13043753,1564.8,1564.7,6.391]
[1743982457983,0.2,1565.6,1565.4,6.38785]
[1743982458165,0.2,1565.6,1565.3,12.77684]
[1743982458366,0.2,1565.6,1565.5,6.38773]
[1743982458548,0.31956774,1565.6,1565.4,12.77582]
[1743982458752,0.31956774,1565.6,1565.5,7.88833]
[1743982459073,0.2,1565.6,1565.5,7.88833]
[1743982459250,0.2,1565.6,1565.5,1.5006]
[1743982459457,0.31956774,1565.6,1565.4,6.38781]
[1743982459649,0.31956774,1565.6,1565.3,6.38853]
[1743982459650,0.2,1565.6,1565.3,6.38828]
[1743982459867,0.13419515,1565.5,1565.4,6.38814]
[1743982460168,0.2,1565.6,1565.4,6.38814]
[1743982460364,0.2,1565.6,1565.3,6.87636653]
[1743982460564,0.2,1565.6,1565.3,0.48789653]
[1743982460737,0.2,1565.6,1565.2,1.5519]
[1743982460932,0.13419515,1565.5,1565.1,13.02702896]
[1743982461137,6.38877,1565.3,1564.9,1.5963]
[1743982461356,6.38877,1565.3,1564.8,6.39041]
[1743982461563,0.13419515,1565.2,1564.8,6.39041]
[1743982461731,0.13419515,1565.2,1564.8,6.39034]
[1743982461936,0.13419515,1565.2,1564.8,0.48832834]
[1743982462194,6.38842,1565.4,1564.9,6.38994]
[1743982462466,9.991,1565.5,1564.6,25.416992]
[1743982462467,0.13419515,1565.1,1565.0,6.38977]
[1743982462656,11.6457,1565.5,1565.0,6.38951]
[1743982462972,6.38858,1565.3,1564.9,6.3898]
[1743982463168,6.38858,1565.3,1564.8,6.39059]
[1743982463169,0.14770372,1565.2,1564.8,6.39059]
[1743982463546,0.14770372,1565.2,1564.8,6.39032]
[1743982463741,6.38957,1565.1,1564.7,6.39099]
[1743982463945,12.92787372,1565.0,1564.5,6.39178]
[1743982464276,6.39163,1564.6,1564.2,6.39302]
[1743982464481,3.0,1564.9,1564.2,6.39282]
[1743982464774,6.391,1564.7,1564.3,6.39263]
[1743982464973,0.14570058,1564.6,1564.2,6.39282]
[1743982465139,6.39101,1564.7,1564.1,0.06391823]
[1743982465343,0.14340179,1564.6,1564.3,6.39262]
[1743982465544,12.86828737,1565.0,1564.3,6.39262]
[1743982465545,12.86828737,1565.0,1564.3,6.39238]
[1743982465757,6.39078,1564.8,1564.3,6.39238]
[1743982465957,12.920144,1564.7,1564.3,6.39238]
[1743982466151,12.920144,1564.7,1564.2,6.39278]
[1743982466152,6.528814,1564.7,1564.2,6.39278]
[1743982466353,0.137804,1564.7,1564.5,6.39152]
[1743982466670,12.78073,1564.9,1564.5,6.39152]
[1743982466877,1.5905,1565.0,1564.5,6.39181]
[1743982466878,0.13774504,1564.6,1564.5,6.39181]
[1743982467079,7.98058,1565.0,1564.6,6.3914]
[1743982467446,0.13774504,1564.9,1564.4,6.16]
[1743982467647,0.13774504,1564.9,1564.6,6.39122]
[1743982467847,6.52809504,1564.9,1564.4,18.94417]
[1743982468048,6.39076,1564.8,1564.5,6.3918]
[1743982468247,0.13774504,1564.9,1564.6,6.39126]
[1743982468485,6.39016,1565.0,1564.5,6.39175]
[1743982468667,6.39016,1565.0,1564.6,6.39137]
[1743982468865,6.39084,1564.8,1564.4,6.39218]
[1743982469065,0.13774504,1564.9,1564.2,13.04466332]
[1743982469280,6.39201,1564.5,1564.1,6.3934]
[1743982469492,1.5324,1564.6,1564.3,6.39248]
[1743982469654,0.13821669,1564.4,1564.3,6.39248]
[1743982469950,1.5324,1565.2,1564.3,13.831085]
[1743982470153,6.39063,1564.8,1564.3,12.55245]
[1743982470362,6.39063,1564.8,1564.4,6.392]
[1743982470561,0.13815774,1564.7,1564.5,6.39167]
[1743982470782,6.38954,1565.1,1564.3,6.16]
[1743982470783,6.38974,1565.1,1564.7,6.39077]
[1743982471001,0.13762712,1565.0,1564.8,6.39037]
[1743982471163,6.52747712,1565.0,1564.7,6.39096]
[1743982471357,0.13762712,1565.0,1564.8,6.39041]
[1743982471555,1.6302,1565.5,1564.8,1.28451612]
[1743982471768,0.13921879,1565.4,1565.3,6.38839]
[1743982472094,0.13921879,1565.4,1565.3,6.38855]
[1743982472304,0.2,1565.6,1565.3,6.38855]
[1743982472603,0.2,1565.6,1565.3,6.38841]
[1743982472758,0.13153638,1565.5,1565.3,6.3884]
[1743982472953,0.13153638,1565.5,1565.1,1.6274]
[1743982473175,6.51936638,1565.5,1565.1,6.38922]
[1743982473353,6.51936638,1565.5,1565.2,6.38875]
[1743982473354,0.13153638,1565.5,1565.2,6.38875]
[1743982473567,0.13153638,1565.5,1565.4,6.38814]
[1743982473969,0.13153638,1565.5,1565.3,12.77708]
[1743982474161,0.13153638,1565.5,1565.4,6.38814]
[1743982474574,0.13153638,1565.5,1565.3,12.77681]
[1743982474773,0.13153638,1565.5,1565.4,6.38814]
[1743982475078,6.51935638,1565.5,1565.2,7.967]
[1743982475271,7.19129202,1565.5,1565.1,6.16]
[1743982475470,6.38829,1565.4,1565.1,6.16]
[1743982475674,0.13153638,1565.5,1565.1,6.16]
[1743982475861,0.13342345,1565.3,1565.2,12.84155062]
[1743982476072,0.2,1565.6,1565.4,6.38796]
[1743982476586,0.12669348,1565.5,1565.4,6.38796]
[1743982476790,0.2,1565.6,1565.5,6.38773]
[1743982476958,0.2,1565.6,1565.5,16.19993155]
[1743982477161,0.2,1565.6,1565.5,16.13607534]
[1743982477398,1e-05,1565.6,1565.5,19.09992887]
[1743982477705,0.02,1565.9,1565.8,6.38651]
[1743982478013,0.02,1565.9,1565.8,15.54651]
[1743982478303,0.02,1565.9,1565.8,0.58834534]
[1743982478508,0.02,1565.9,1565.8,7.03871359]
[1743982478656,0.02,1565.9,1565.8,8.38127356]
[1743982478657,0.14769688,1565.9,1565.8,8.38127356]
[1743982478861,0.02,1565.9,1565.8,8.3174177]
[1743982479091,0.15005695,1565.9,1565.8,8.3174177]
[1743982479299,0.02,1565.9,1565.8,8.3174177]
[1743982479504,0.14281906,1565.9,1565.8,7.72907236]
[1743982479710,0.02,1565.9,1565.8,7.72907236]
[1743982479877,0.14281906,1565.9,1565.8,8.21070262]
[1743982480082,6.38426,1566.4,1565.9,6.3859]
[1743982480303,12.76762,1566.5,1566.1,6.38528]
[1743982480475,0.12281906,1566.3,1566.0,7.02422]
[1743982480671,6.38365,1566.5,1566.0,0.63859]
[1743982480885,0.12246472,1566.2,1565.9,6.38578]
[1743982481105,6.38427,1566.4,1565.9,6.38578]
[1743982481411,6.38463,1566.3,1565.8,7.97585145]
[1743982481582,0.12246472,1566.3,1566.0,6.38554]
[1743982481782,6.38469,1566.3,1565.9,6.38593]
[1743982481999,6.38469,1566.3,1565.6,1.5139]
[1743982482000,6.38596,1566.0,1565.6,7.90112]
[1743982482209,6.38666,1565.8,1565.4,13.02014646]
[1743982482411,6.50867472,1565.9,1565.4,14.01272465]
[1743982482582,8.10990409,1565.7,1565.2,48.33]
[1743982482784,6.38743,1565.6,1565.2,6.38876]
[1743982483028,1.6008,1565.7,1565.1,6.16]
[1743982483210,6.38873,1565.3,1564.9,6.38999]
[1743982483373,6.38855,1565.3,1565.2,0.59056285]
[1743982483579,6.50859266,1565.3,1565.2,0.59056285]
[1743982484119,0.12004266,1565.3,1565.2,0.59056285]
[1743982484323,0.12004266,1565.3,1565.2,1.28853713]
[1743982484528,6.38807,1565.5,1565.2,1.28853713]
[1743982484914,6.3874,1565.6,1565.2,1.28853713]
[1743982485089,17.94783,1565.7,1565.2,13.36838285]
[1743982485433,6.38749,1565.6,1565.2,13.36838285]
[1743982485732,17.94783,1565.7,1565.3,6.38841]
[1743982485883,6.38746,1565.6,1565.3,0.59056285]
[1743982486084,6.38627,1565.9,1565.3,0.59056285]
[1743982486286,6.38652,1565.8,1565.5,6.38759]
[1743982486598,6.38627,1565.9,1565.3,0.59056285]
[1743982486599,6.38763,1565.6,1565.3,0.59056285]
[1743982486809,12.77594,1565.5,1565.3,0.59056285]
[1743982487018,6.38814,1565.4,1565.3,0.59056285]
[1743982487396,7.89988,1565.6,1565.3,0.59056285]
[1743982487596,7.89988,1565.6,1565.3,1.28850414]
[1743982487827,6.38814,1565.4,1565.3,0.59056285]
[1743982488202,6.38895,1565.2,1565.1,0.59056285]
[1743982488407,6.38838,1565.4,1565.1,0.59056285]
[1743982488834,12.77693,1565.4,1565.1,0.59056285]
[1743982489043,12.77676,1565.4,1565.1,1.28859314]
[1743982489223,6.38838,1565.4,1565.2,0.59056285]
[1743982489997,6.38855,1565.3,1565.2,0.59056285]
[1743982490197,6.38838,1565.4,1565.2,0.59056285]
[1743982490427,7.89997,1565.6,1565.2,0.59056285]
[1743982490593,1.5125,1565.6,1565.3,6.3885]
[1743982490798,9.952,1565.8,1565.4,0.63885]
[1743982491047,16.33859,1565.8,1565.5,0.59056285]
[1743982491223,6.38732,1565.6,1565.5,0.59056285]
[1743982491826,12.7742,1565.7,1565.5,0.59056285]
[1743982492142,16.33867,1565.8,1565.5,6.97822285]
[1743982492450,6.38704,1565.7,1565.6,0.59056285]
[1743982493140,6.38669,1565.8,1565.6,0.59056285]
[1743982493345,6.38669,1565.8,1565.4,7.94217]
[1743982493543,12.77254,1565.9,1565.5,6.3875]
[1743982493842,6.38618,1565.9,1565.4,1.5542]
[1743982494048,6.38618,1565.9,1565.5,6.38761]
[1743982494248,6.38618,1565.9,1565.6,0.59056285]
[1743982494409,6.38618,1565.9,1565.6,6.97764285]
[1743982494745,6.38575,1566.0,1565.6,13.36482285]
[1743982494951,1.5691,1566.2,1565.6,0.59056285]
[1743982495244,6.21058477,1566.2,1565.7,0.59056285]
[1743982495563,14.33938,1566.2,1565.8,6.3863]
[1743982495714,7.95411,1566.2,1565.8,6.3863]
[1743982495916,6.38544,1566.1,1565.8,6.3863]
[1743982496241,1.5691,1566.2,1565.9,0.59056285]
[1743982496440,6.38542,1566.1,1565.9,0.59056285]
[1743982496849,6.38542,1566.1,1566.0,0.59056285]
[1743982497996,12.77098,1566.1,1565.7,6.97725285]
[1743982498202,1.5691,1566.2,1565.8,6.38649]
[1743982498421,1.5691,1566.2,1565.9,7.024719]
[1743982498629,7.95403,1566.2,1565.9,0.638649]
[1743982498810,7.95403,1566.2,1565.9,7.024579]
[1743982499010,7.95403,1566.2,1565.9,0.638649]
[1743982499210,14.33928,1566.2,1566.0,0.59056285]
[1743982499413,6.38528,1566.1,1566.0,0.59056285]
[1743982500433,7.95403,1566.2,1566.0,0.59056285]
[1743982500731,6.38528,1566.1,1566.0,0.59056285]
[1743982501337,1.6141,1566.6,1566.0,0.59056285]
[1743982501547,6.38384,1566.5,1566.1,6.97546285]
[1743982501710,1.6141,1566.6,1566.2,0.69754629]
[1743982501907,6.384,1566.5,1566.2,6.38481]
[1743982502113,6.38389,1566.5,1566.1,6.97551285]
[1743982502344,6.38389,1566.5,1566.2,0.59056285]
[1743982502564,7.99765,1566.6,1566.2,0.59056285]
[1743982502854,7.91007,1566.3,1566.2,0.59056285]
[1743982503157,6.38631,1565.9,1565.7,0.59056285]
[1743982503306,6.38651,1565.8,1565.7,0.59056285]
[1743982503511,6.38628,1565.9,1565.7,0.59056285]
[1743982503512,7.96918,1565.9,1565.7,0.59056285]
[1743982503712,6.38586,1566.0,1565.7,0.59056285]
[1743982503948,6.38586,1566.0,1565.8,0.59056285]
[1743982504109,6.38477,1566.3,1565.9,6.38596]
[1743982504439,6.38477,1566.3,1565.8,8.60131285]
[1743982504440,6.3855,1566.1,1565.8,2.21486285]
[1743982504641,6.38461,1566.3,1565.9,6.3858]
[1743982504856,6.3849,1566.2,1566.0,0.59056285]
[1743982505061,6.38528,1566.1,1566.0,0.59056285]
[1743982505356,7.89688,1566.1,1566.0,0.59056285]
[1743982505846,6.38651,1565.8,1565.7,0.59056285]
[1743982506342,12.77255,1565.9,1565.7,0.59056285]
[1743982506545,1.5116,1566.1,1565.7,0.59056285]
[1743982506546,7.89697,1566.1,1565.7,0.59056285]
[1743982506748,9.935,1566.2,1565.7,2.19226285]
[1743982506914,9.935,1566.2,1565.4,1.6017]
[1743982506915,6.38628,1565.9,1565.4,1.6017]
[1743982507114,8.00351,1566.1,1565.4,1.6017]
[1743982507422,6.38732,1565.6,1565.1,1.5139]
[1743982507621,12.77572,1565.5,1565.1,7.90309]
[1743982507824,6.38651,1565.8,1565.4,6.38785]
[1743982508027,6.38651,1565.8,1565.5,6.3875]
[1743982508359,6.38731,1565.7,1565.2,6.75559714]
[1743982508657,6.38773,1565.5,1564.9,6.39013]
[1743982508965,6.38787,1565.5,1565.1,6.3891]
[1743982509248,11.5933,1565.8,1565.5,6.38771]
[1743982509448,6.38585,1566.0,1565.3,6.38855]
[1743982509623,6.38668,1565.8,1565.4,7.50219816]
[1743982509821,6.38615,1565.9,1565.5,6.38773]
[1743982510046,6.38657,1565.8,1565.5,8.02578]
[1743982510246,6.38577,1566.0,1565.6,6.98285714]
[1743982510447,6.38577,1566.0,1565.7,7.08519571]
[1743982510657,6.3845,1566.3,1565.9,6.38588]
[1743982510853,6.38628,1565.9,1565.7,0.69828571]
[1743982511049,12.77271,1565.9,1565.6,0.59568714]
[1743982511353,6.38675,1565.8,1565.6,0.59568714]
[1743982511518,6.38563,1566.1,1565.7,6.38659]
[1743982511719,6.38427,1566.4,1565.9,6.38581]
[1743982511949,6.38408,1566.4,1566.0,7.023911]
[1743982512368,6.38337,1566.6,1566.2,6.3846]
[1743982512659,6.38381,1566.5,1566.2,6.3846]
[1743982512819,6.38381,1566.5,1566.1,13.36618714]
[1743982513021,6.38381,1566.5,1566.2,1.33661871]
[1743982513318,6.38249,1566.8,1566.1,6.75568714]
[1743982513518,6.38249,1566.8,1566.4,6.38388]
[1743982513720,0.02,1566.9,1566.7,6.38281]
[1743982513930,0.02,1566.9,1566.8,6.38243]
[1743982514132,0.02,1566.9,1566.8,9.186535]
[1743982514653,0.02,1566.9,1566.8,3.39833108]
[1743982514951,6.40202,1566.9,1566.8,0.59422608]
[1743982515248,9.53121474,1566.9,1566.8,0.59422608]
[1743982515455,0.14919474,1566.9,1566.8,0.59422608]
[1743982515658,0.14919474,1566.9,1566.8,7.93353]
[1743982516740,0.14919474,1566.9,1566.8,8.52775608]
[1743982516961,0.14919474,1566.9,1566.8,10.01881169]
[1743982517765,4.74e-06,1566.9,1566.8,19.24263371]
[1743982518064,6.37958,1567.5,1566.8,9.79638169]
[1743982518232,8.532378,1567.4,1566.8,0.59422608]
[1743982518436,2.152258,1567.4,1566.6,6.63716774]
[1743982518634,1.5807,1567.7,1567.3,6.38029]
[1743982518934,0.02,1567.9,1567.8,6.37836]
[1743982519480,0.02,1567.9,1567.8,7.654047]
[1743982519852,7.4e-07,1567.9,1567.8,9.29392861]
[1743982520031,0.55,1568.2,1568.0,6.37742]
[1743982520379,0.55,1568.2,1567.9,6.37787]
[1743982520578,0.55,1568.2,1568.1,6.37714]
[1743982520893,0.55,1568.2,1568.1,6.44091228]
[1743982521170,6.92673,1568.2,1567.9,6.16]
[1743982521461,6.9268,1568.2,1567.7,6.37845]
[1743982521665,0.55,1568.2,1567.8,6.37818]
[1743982521851,6.927,1568.2,1567.7,7.016445]
[1743982522164,1.6542,1568.1,1567.7,0.637845]
[1743982522366,1.6542,1568.1,1567.4,7.88882]
[1743982522367,6.37813,1567.9,1567.4,14.26849]
[1743982522669,1.6542,1568.1,1567.4,7.88917]
[1743982522850,6.37776,1568.0,1567.4,1.5092]
[1743982523052,1.6542,1568.1,1567.8,6.37833]
[1743982523243,0.55,1568.2,1567.9,0.637833]
[1743982523244,6.92681,1568.2,1567.9,0.637833]
[1743982523651,6.92681,1568.2,1567.6,6.37916]
[1743982523652,12.7547,1568.1,1567.6,6.37916]
[1743982523870,6.37856,1567.8,1567.3,6.38029]
[1743982524052,9.91,1567.8,1567.1,1.6187]
[1743982524273,9.91,1567.8,1567.4,6.37962]
[1743982524461,9.91,1567.8,1567.6,6.37915]
[1743982524666,9.91,1567.8,1567.5,13.396682]
[1743982524845,6.92676,1568.2,1567.7,6.37855]
[1743982525045,6.37818,1567.9,1567.6,1.5136]
[1743982525246,6.37795,1567.9,1567.3,6.38039]
[1743982525449,6.37839,1567.8,1567.3,0.789399]
[1743982525744,6.37877,1567.7,1567.3,0.789399]
[1743982525951,6.37884,1567.7,1567.3,7.169729]
[1743982526152,6.3796,1567.5,1567.3,0.789399]
[1743982526454,6.37836,1567.8,1567.3,6.38038]
[1743982526641,16.28599,1567.9,1567.4,6.37997]
[1743982526845,16.28599,1567.9,1567.4,6.37967]
[1743982527151,9.908,1567.9,1567.6,6.37886]
[1743982527475,0.55,1568.2,1567.7,6.3785]
[1743982527476,8.58044,1568.2,1567.7,6.3785]
[1743982527777,14.9575,1568.2,1567.7,6.44228125]
[1743982527950,8.58044,1568.2,1567.8,7.02255812]
[1743982528283,0.55,1568.2,1568.1,6.37714]
[1743982528776,0.55,1568.2,1568.0,8.03555]
[1743982528777,0.02,1568.9,1568.5,6.37511]
[1743982528975,0.02,1568.9,1568.7,6.37446]
[1743982529290,6.39396,1568.9,1568.3,6.37626]
[1743982529590,6.37571,1568.5,1568.0,8.00344]
[1743982529879,7.90467,1568.8,1568.1,6.84943499]
[1743982530107,6.39394,1568.9,1568.3,6.37633]
[1743982530384,0.02,1568.9,1568.6,6.37489]
[1743982530542,0.02,1568.9,1568.6,6.3748]
[1743982530747,0.02,1568.9,1568.7,6.37453]
[1743982530997,0.02,1568.9,1568.4,8.629593]
[1743982530998,0.02,1568.9,1568.4,8.629393]
[1743982531149,0.02,1568.9,1568.5,0.8629393]
[1743982531700,0.02,1568.9,1568.4,8.629443]
[1743982531701,0.40117306,1568.8,1568.4,8.629443]
[1743982532063,0.02,1568.9,1568.5,6.37541]
[1743982532402,6.37458,1568.8,1568.4,2.72726957]
[1743982532554,0.40236439,1568.7,1568.4,2.72726957]
[1743982532757,6.37515,1568.6,1568.4,0.637633]
[1743982533107,0.40189277,1568.5,1568.2,46.30132]
[1743982533486,0.40189277,1568.5,1568.0,16.27536]
[1743982533487,6.77745277,1568.5,1568.0,16.27536]
[1743982533798,6.37592,1568.4,1567.9,7.94069]
[1743982534118,0.40059557,1568.3,1567.9,1.5629]
[1743982534296,6.37732,1568.1,1567.9,0.85852881]
[1743982534612,6.77817763,1568.0,1567.6,1.544]
[1743982534906,1.5566,1567.9,1567.3,2.01523901]
[1743982535198,0.39971091,1567.8,1567.5,6.37923]
[1743982535504,6.37868,1567.8,1567.3,14.30447]
[1743982535725,6.77872091,1567.7,1567.3,1.544]
[1743982535994,12.75881,1567.6,1567.3,1.544]
[1743982536151,6.38006,1567.4,1566.7,1.6042]
[1743982536351,1.6367,1567.5,1566.7,1.6042]
[1743982536553,12.76281,1567.1,1566.7,7.98687]
[1743982536756,0.39333633,1567.0,1566.7,1.6042]
[1743982537102,6.38202,1566.9,1566.1,0.02]
[1743982537407,6.38488,1566.2,1566.1,0.02]
[1743982537555,0.384072,1566.2,1566.1,6.40508]
[1743982537755,1.5301,1566.7,1566.1,0.02]
[1743982537756,6.38456,1566.3,1566.1,0.02]
[1743982538087,6.72896965,1566.2,1566.1,0.02]
[1743982538465,0.34408965,1566.2,1566.1,0.02]
[1743982539198,0.34165682,1566.2,1566.1,0.02]
[1743982539400,6.72653682,1566.2,1566.1,0.02]
[1743982539554,8.31213682,1566.2,1566.1,0.02]
[1743982539754,0.34165682,1566.2,1566.1,0.02]
[1743982539954,0.34165682,1566.2,1566.1,6.40528]
[1743982540178,0.34165682,1566.2,1566.1,0.660528]
[1743982540569,16.27657,1566.6,1566.1,8.588108]
[1743982540767,6.38467,1566.3,1566.1,0.02]
[1743982541306,6.72500326,1566.5,1566.1,0.02]
[1743982541594,0.34106326,1566.5,1566.1,0.02]
[1743982542008,0.34106326,1566.5,1566.2,6.38472]
[1743982542161,6.38444,1566.4,1566.1,0.02]
[1743982542359,6.38488,1566.2,1566.1,1e-05]
[1743982542907,16.27488,1566.2,1566.1,1e-05]
[1743982543509,6.3886,1565.3,1565.1,0.02]
[1743982543726,1.5586,1566.0,1565.4,1.5224]
[1743982543952,6.38344,1566.6,1566.0,1.5224]
[1743982544117,6.72482326,1566.5,1566.0,1.5224]
[1743982544450,0.34106326,1566.5,1566.4,6.38406]
[1743982544637,0.34106326,1566.5,1566.0,1.5224]
[1743982544817,6.38482,1566.3,1565.6,6.387]
[1743982545005,1.5402,1566.4,1565.7,0.6387]
[1743982545206,6.38549,1566.1,1565.7,6.38689]
[1743982545420,7.92443,1566.4,1565.9,6.3861]
[1743982545421,6.3845,1566.3,1565.9,6.3861]
[1743982545606,1.5402,1566.4,1566.1,6.38527]
[1743982545822,0.34106326,1566.5,1565.9,7.8942]
[1743982546016,0.34106326,1566.5,1566.1,6.38498]
[1743982546214,0.34106326,1566.5,1566.2,6.38481]
[1743982546417,6.72505326,1566.5,1566.1,6.38505]
[1743982546657,6.38413,1566.4,1566.0,6.38553]
[1743982546807,0.34106326,1566.5,1565.6,11.98712421]
[1743982547030,6.38547,1566.1,1565.7,6.38686]
[1743982547374,6.38572,1566.0,1565.7,7.87408442]
[1743982547573,6.38675,1565.8,1565.4,6.38809]
[1743982547736,6.38612,1565.9,1565.5,6.38755]
[1743982548231,6.38612,1565.9,1565.3,1.5399]
[1743982548232,6.38406,1566.4,1566.0,6.38562]
[1743982548429,12.76847,1566.4,1566.0,6.38553]
[1743982548647,6.38406,1566.4,1566.0,7.662687]
[1743982548970,6.38453,1566.3,1566.0,6.38553]
[1743982549261,6.38466,1566.3,1565.8,8.04591]
[1743982549470,6.38466,1566.3,1565.8,14.4322]
[1743982549631,12.76842,1566.4,1565.9,6.38586]
[1743982549964,6.38453,1566.3,1565.9,6.38586]
[1743982550332,6.38412,1566.4,1566.0,6.38548]
[1743982550529,6.38478,1566.3,1565.8,14.4323]
[1743982550742,0.33664272,1566.3,1566.0,6.38569]
[1743982550942,0.33664272,1566.3,1566.2,6.38488]
[1743982551261,0.34106326,1566.5,1566.2,6.38455]
[1743982551447,0.30921457,1566.4,1566.1,6.38506]
[1743982551654,0.30921457,1566.4,1565.9,6.3857]
[1743982551859,1.89691457,1566.4,1566.1,6.38524]
[1743982552035,0.30921457,1566.4,1566.0,6.44954478]
[1743982552235,0.30921457,1566.4,1566.2,6.38466]
[1743982552571,0.30921457,1566.4,1566.3,6.38447]
[1743982553055,0.30921457,1566.4,1566.3,8.13147516]
[1743982553269,0.30921457,1566.4,1566.2,8.02926]
[1743982553459,0.30921457,1566.4,1566.1,6.38527]
[1743982553671,0.30921457,1566.4,1566.3,6.38447]
[1743982554047,0.30921457,1566.4,1565.9,2.81669358]
[1743982554246,6.38484,1566.3,1565.6,1.5561]
[1743982554435,12.77104,1566.1,1565.7,6.38668]
[1743982554639,0.27457876,1566.0,1565.7,6.38668]
[1743982555377,0.27457876,1566.0,1565.0,16.07404383]
[1743982555378,0.27457876,1566.0,1565.3,1.6628]
[1743982555581,0.27457876,1566.0,1565.1,6.40902]
[1743982555582,6.3874,1565.6,1565.1,6.40902]
[1743982555824,7.99767,1565.9,1565.5,6.38751]
[1743982556140,7.99767,1565.9,1565.2,8.05175]
[1743982556141,1.6115,1565.9,1565.7,6.3867]
[1743982556482,9.885,1566.0,1565.8,6.38632]
[1743982556636,9.885,1566.0,1565.9,6.3861]
[1743982557066,11.5342,1566.4,1566.1,6.38502]
[1743982557377,0.34106326,1566.5,1566.2,6.38485]
[1743982557577,0.34106326,1566.5,1566.2,12.7697]
[1743982557788,0.34106326,1566.5,1566.3,6.38445]
[1743982557939,0.34106326,1566.5,1566.3,6.38425]
[1743982558139,0.34106326,1566.5,1566.4,6.38406]
[1743982558694,0.34106326,1566.5,1566.4,8.00526]
[1743982559198,0.34106326,1566.5,1566.4,8.49285873]
[1743982559399,0.34106326,1566.5,1566.4,8.55669085]
[1743982559558,0.34106326,1566.5,1566.4,8.49285873]
[1743982559758,0.34106326,1566.5,1566.4,10.0444121]
[1743982560263,6.38447,1566.3,1566.2,0.31240368]
[1743982560603,6.72476326,1566.5,1566.1,6.385]
[1743982560894,0.34106326,1566.5,1566.2,12.76945]
[1743982561056,0.34106326,1566.5,1565.9,6.38589]
[1743982561256,6.38483,1566.3,1565.9,6.38602]
[1743982561563,6.38478,1566.3,1565.9,6.38602]
[1743982561901,6.38478,1566.3,1565.7,6.3869]
[1743982561902,1.5768,1566.3,1565.7,6.3869]
[1743982562212,1.5768,1566.3,1566.0,6.38549]
[1743982562408,1.36326959,1566.5,1566.0,6.44947699]
[1743982562409,0.34106326,1566.5,1566.0,6.44947699]
[1743982562572,6.38441,1566.4,1566.0,6.38553]
[1743982562777,0.34106326,1566.5,1566.2,6.38486]
[1743982563071,6.72507326,1566.5,1566.1,6.38524]
[1743982563300,0.34106326,1566.5,1566.0,8.03048]
[1743982563602,6.38406,1566.4,1565.8,1.6448]